[Event "*** Titled Tuesday Blitz"]
[Site "Chess.com"]
[Date "2021.02.09"]
[Round "3"]
[White "Soledadense88"]
[Black "MIJuanReyesRosa"]
[Result "0-1"]
[WhiteElo "2306"]
[BlackElo "2113"]
[TimeControl "180+1"]
[EndTime "10:29:16 PST"]
[Termination "MIJuanReyesRosa won on time"]

1. e4 {[%clk 0:03:00.9]} 1... c5 {[%clk 0:02:58.4]} 2. Nf3 {[%clk 0:02:58.1]}
2... e6 {[%clk 0:02:57.9]} 3. d4 {[%clk 0:02:57.3]} 3... cxd4 {[%clk 0:02:58.1]}
4. Nxd4 {[%clk 0:02:58.2]} 4... a6 {[%clk 0:02:58.4]} 5. Nc3 {[%clk 0:02:57.8]}
5... Qc7 {[%clk 0:02:58.1]} 6. g4 {[%clk 0:02:57.7]} 6... b5 {[%clk 0:02:50.4]}
7. Bg2 {[%clk 0:02:57.4]} 7... Bb7 {[%clk 0:02:49.7]} 8. O-O {[%clk 0:02:50.6]}
8... d6 {[%clk 0:02:46.2]} 9. Re1 {[%clk 0:02:48.7]} 9... Nf6 {[%clk 0:02:40.7]}
10. g5 {[%clk 0:02:33.9]} 10... Nfd7 {[%clk 0:02:39.6]} 11. Qg4 {[%clk
0:02:14.6]} 11... Ne5 {[%clk 0:02:36.8]} 12. Qg3 {[%clk 0:02:14.4]} 12... Be7
{[%clk 0:02:32.3]} 13. f4 {[%clk 0:02:01.1]} 13... Nc4 {[%clk 0:02:31.4]} 14. b3
{[%clk 0:01:50.7]} 14... Nb6 {[%clk 0:02:26.7]} 15. Bb2 {[%clk 0:01:46.6]} 15...
Nc6 {[%clk 0:02:17.7]} 16. Nxc6 {[%clk 0:01:16.2]} 16... Bxc6 {[%clk 0:02:17.4]}
17. Kh1 {[%clk 0:01:05.5]} 17... O-O-O {[%clk 0:02:04.6]} 18. a4 {[%clk
0:00:51.1]} 18... f5 {[%clk 0:01:59.7]} 19. axb5 {[%clk 0:00:49.8]} 19... axb5
{[%clk 0:01:58.9]} 20. exf5 {[%clk 0:00:42.7]} 20... exf5 {[%clk 0:01:51]} 21.
Qf2 {[%clk 0:00:21.9]} 21... Rhe8 {[%clk 0:01:20.9]} 22. Ra6 {[%clk 0:00:20.3]}
22... Bxg2+ {[%clk 0:01:13.1]} 23. Qxg2 {[%clk 0:00:21.2]} 23... Qb7 {[%clk
0:01:02.7]} 24. Rxb6 {[%clk 0:00:21.3]} 24... Qxb6 {[%clk 0:01:02.5]} 25. Nd5
{[%clk 0:00:21.3]} 25... Qb7 {[%clk 0:00:54.2]} 26. c4 {[%clk 0:00:15.9]} 26...
Bf8 {[%clk 0:00:48.2]} 27. Ra1 {[%clk 0:00:14.6]} 27... Kb8 {[%clk 0:00:34.4]}
28. Bd4 {[%clk 0:00:12]} 28... Re4 {[%clk 0:00:28.1]} 29. Ba7+ {[%clk
0:00:11.7]} 29... Qxa7 {[%clk 0:00:23.7]} 30. Rd1 {[%clk 0:00:05.1]} 30... Rde8
{[%clk 0:00:16]} 31. Qd2 {[%clk 0:00:04.2]} 31... Qb7 {[%clk 0:00:13.4]} 32.
cxb5 {[%clk 0:00:03.1]} 32... Re2 {[%clk 0:00:12.6]} 33. Qd4 {[%clk 0:00:02.5]}
33... Re1+ {[%clk 0:00:11.6]} 34. Rxe1 {[%clk 0:00:02.8]} 34... Rxe1+ {[%clk
0:00:11.7]} 35. Kg2 {[%clk 0:00:03.7]} 35... Re4 {[%clk 0:00:10]} 36. Qd3 {[%clk
0:00:01.8]} 36... g6 {[%clk 0:00:09]} 37. Kg3 {[%clk 0:00:01.2]} 37... Re8
{[%clk 0:00:07.2]} 0-1

[Event "*** Titled Tuesday Blitz"]
[Site "Chess.com"]
[Date "2021.02.09"]
[Round "3"]
[White "BrandonJacobson"]
[Black "DanilNajdin"]
[Result "1-0"]
[WhiteElo "3000"]
[BlackElo "2467"]
[TimeControl "180+1"]
[EndTime "10:29:18 PST"]
[Termination "BrandonJacobson won by checkmate"]

1. d4 {[%clk 0:03:00.9]} 1... f5 {[%clk 0:02:59.4]} 2. c4 {[%clk 0:03:01.8]}
2... Nf6 {[%clk 0:02:58.9]} 3. g3 {[%clk 0:03:02.2]} 3... e6 {[%clk 0:02:59.4]}
4. Bg2 {[%clk 0:03:03.1]} 4... c6 {[%clk 0:02:59.9]} 5. Nf3 {[%clk 0:03:01.9]}
5... d5 {[%clk 0:03:00.1]} 6. O-O {[%clk 0:03:02.8]} 6... Bd6 {[%clk 0:03:00.6]}
7. Nc3 {[%clk 0:03:02]} 7... O-O {[%clk 0:03:00.5]} 8. Qc2 {[%clk 0:03:02.8]}
8... Qe7 {[%clk 0:03:00.3]} 9. Bg5 {[%clk 0:03:03]} 9... h6 {[%clk 0:03:00.2]}
10. Bf4 {[%clk 0:02:58.6]} 10... Bxf4 {[%clk 0:03:00.5]} 11. gxf4 {[%clk
0:02:59.5]} 11... Bd7 {[%clk 0:02:51.3]} 12. Ne5 {[%clk 0:02:57.8]} 12... Be8
{[%clk 0:02:51.8]} 13. e3 {[%clk 0:02:58.2]} 13... Nbd7 {[%clk 0:02:46.8]} 14.
cxd5 {[%clk 0:02:48.8]} 14... Nxd5 {[%clk 0:02:40.1]} 15. Kh1 {[%clk 0:02:41.1]}
15... Bh5 {[%clk 0:02:35.5]} 16. Nxd5 {[%clk 0:02:27.3]} 16... exd5 {[%clk
0:02:23.2]} 17. Rg1 {[%clk 0:02:25.4]} 17... Nf6 {[%clk 0:02:16]} 18. Bh3 {[%clk
0:02:18.9]} 18... Ne4 {[%clk 0:02:13.2]} 19. f3 {[%clk 0:02:17.4]} 19... Nd6
{[%clk 0:02:13.4]} 20. Rg3 {[%clk 0:02:16]} 20... Kh7 {[%clk 0:02:01.9]} 21.
Rag1 {[%clk 0:02:16]} 21... Rf6 {[%clk 0:01:24]} 22. Rxg7+ {[%clk 0:01:52]}
22... Qxg7 {[%clk 0:01:24.9]} 23. Rxg7+ {[%clk 0:01:52.2]} 23... Kxg7 {[%clk
0:01:25.8]} 24. Qf2 {[%clk 0:01:52.7]} 24... Raf8 {[%clk 0:01:17.3]} 25. Bf1
{[%clk 0:01:41.4]} 25... Kh7 {[%clk 0:01:13.3]} 26. Qh4 {[%clk 0:01:38.5]} 26...
Be8 {[%clk 0:01:12.2]} 27. Bd3 {[%clk 0:01:38.8]} 27... Kg7 {[%clk 0:01:00]} 28.
Qg3+ {[%clk 0:01:30.1]} 28... Kh8 {[%clk 0:00:56.7]} 29. Qe1 {[%clk 0:01:24]}
29... Rg8 {[%clk 0:00:44.4]} 30. Qa5 {[%clk 0:01:20.9]} 30... Bh5 {[%clk
0:00:37.6]} 31. Qc7 {[%clk 0:01:02.3]} 31... Nf7 {[%clk 0:00:36]} 32. Qe7 {[%clk
0:01:02.6]} 32... Nxe5 {[%clk 0:00:19.2]} 33. Qxf6+ {[%clk 0:01:00.6]} 33... Rg7
{[%clk 0:00:19.7]} 34. Qf8+ {[%clk 0:00:49.4]} 34... Kh7 {[%clk 0:00:15.9]} 35.
Bxf5+ {[%clk 0:00:49.6]} 35... Ng6 {[%clk 0:00:15]} 36. Qf6 {[%clk 0:00:44.4]}
36... Bxf3+ {[%clk 0:00:14.3]} 37. Kg1 {[%clk 0:00:44.9]} 37... Be4 {[%clk
0:00:10.8]} 38. Bxe4 {[%clk 0:00:40]} 38... dxe4 {[%clk 0:00:11.7]} 39. Kf2
{[%clk 0:00:40.1]} 39... Ne7 {[%clk 0:00:12]} 40. Qe5 {[%clk 0:00:39.1]} 40...
Kg8 {[%clk 0:00:11.3]} 41. Qxe4 {[%clk 0:00:39.1]} 41... Nd5 {[%clk 0:00:11.6]}
42. Qe6+ {[%clk 0:00:36.7]} 42... Kh7 {[%clk 0:00:11.2]} 43. f5 {[%clk
0:00:32.2]} 43... Re7 {[%clk 0:00:11.3]} 44. Qg6+ {[%clk 0:00:11]} 44... Kh8
{[%clk 0:00:11.5]} 45. f6 {[%clk 0:00:10.6]} 45... Re6 {[%clk 0:00:07.3]} 46.
Qg7# {[%clk 0:00:10.7]} 1-0

[Event "*** Titled Tuesday Blitz"]
[Site "Chess.com"]
[Date "2021.02.09"]
[Round "3"]
[White "malakismayil"]
[Black "MFBerna"]
[Result "1-0"]
[WhiteElo "2367"]
[BlackElo "2517"]
[TimeControl "180+1"]
[EndTime "10:29:19 PST"]
[Termination "malakismayil won by resignation"]

1. e4 {[%clk 0:03:00.9]} 1... c6 {[%clk 0:02:59.8]} 2. d4 {[%clk 0:02:58.8]}
2... d5 {[%clk 0:03:00.7]} 3. exd5 {[%clk 0:02:57.2]} 3... cxd5 {[%clk 0:03:01]}
4. Bd3 {[%clk 0:02:40.9]} 4... Nc6 {[%clk 0:03:01.1]} 5. c3 {[%clk 0:02:39]}
5... g6 {[%clk 0:03:01.3]} 6. h3 {[%clk 0:02:38.5]} 6... Bg7 {[%clk 0:03:01.1]}
7. Nf3 {[%clk 0:02:38.6]} 7... Nh6 {[%clk 0:03:01]} 8. O-O {[%clk 0:02:34.7]}
8... O-O {[%clk 0:02:59.9]} 9. Re1 {[%clk 0:02:30.4]} 9... f6 {[%clk 0:02:44.4]}
10. Bb5 {[%clk 0:02:28.5]} 10... Nf7 {[%clk 0:02:38.4]} 11. Bxc6 {[%clk
0:02:21.6]} 11... bxc6 {[%clk 0:02:39.3]} 12. Bf4 {[%clk 0:02:21.2]} 12... Re8
{[%clk 0:02:32.5]} 13. Nbd2 {[%clk 0:01:58.5]} 13... e5 {[%clk 0:02:29]} 14. Be3
{[%clk 0:01:56.6]} 14... Rb8 {[%clk 0:02:20]} 15. b4 {[%clk 0:01:46.4]} 15... e4
{[%clk 0:02:15.3]} 16. Nh2 {[%clk 0:01:43.8]} 16... f5 {[%clk 0:02:03.9]} 17.
Nb3 {[%clk 0:01:33.4]} 17... Qc7 {[%clk 0:01:50.1]} 18. Qd2 {[%clk 0:01:31.4]}
18... Nd6 {[%clk 0:01:29.4]} 19. Bf4 {[%clk 0:01:23]} 19... Qd8 {[%clk
0:00:56.1]} 20. Qc1 {[%clk 0:01:15.5]} 20... Rb7 {[%clk 0:00:54.8]} 21. Nc5
{[%clk 0:01:13.7]} 21... Rf7 {[%clk 0:00:50.6]} 22. Nf1 {[%clk 0:01:08.7]} 22...
Bf6 {[%clk 0:00:48.3]} 23. g3 {[%clk 0:00:58.2]} 23... g5 {[%clk 0:00:41.6]} 24.
Be3 {[%clk 0:00:57.9]} 24... Nc4 {[%clk 0:00:40.7]} 25. a4 {[%clk 0:00:53.3]}
25... Rg7 {[%clk 0:00:39]} 26. Nd2 {[%clk 0:00:50.8]} 26... f4 {[%clk
0:00:25.2]} 27. Nxc4 {[%clk 0:00:44.3]} 27... dxc4 {[%clk 0:00:26.1]} 28. Bd2
{[%clk 0:00:41.4]} 28... e3 {[%clk 0:00:26]} 29. fxe3 {[%clk 0:00:40.6]} 29...
fxg3 {[%clk 0:00:26]} 30. e4 {[%clk 0:00:36.1]} 30... Bxh3 {[%clk 0:00:23.5]}
31. e5 {[%clk 0:00:33.4]} 31... Qd5 {[%clk 0:00:22.7]} 32. Re2 {[%clk 0:00:32]}
32... Be7 {[%clk 0:00:16]} 33. Ne4 {[%clk 0:00:25.3]} 33... Rf8 {[%clk 0:00:15]}
34. Qe1 {[%clk 0:00:21.1]} 34... Rf1+ {[%clk 0:00:12]} 35. Qxf1 {[%clk
0:00:20.5]} 35... Bxf1 {[%clk 0:00:12.9]} 36. Rxf1 {[%clk 0:00:20.8]} 36... h5
{[%clk 0:00:09.9]} 37. Nxg3 {[%clk 0:00:20.9]} 37... h4 {[%clk 0:00:07.6]} 38.
Nf5 {[%clk 0:00:21.3]} 38... Rh7 {[%clk 0:00:06.9]} 39. Kh2 {[%clk 0:00:19.3]}
39... Bf8 {[%clk 0:00:06.9]} 40. Bxg5 {[%clk 0:00:18.2]} 40... h3 {[%clk
0:00:06.6]} 41. Rg1 {[%clk 0:00:17.8]} 41... Kh8 {[%clk 0:00:06.5]} 42. Bf6+
{[%clk 0:00:18.1]} 42... Bg7 {[%clk 0:00:06.8]} 43. Nxg7 {[%clk 0:00:16.5]}
43... Rxg7 {[%clk 0:00:04.8]} 44. Rxg7 {[%clk 0:00:16.6]} 44... Qf3 {[%clk
0:00:03.8]} 45. Rg3+ {[%clk 0:00:15]} 1-0

[Event "*** Titled Tuesday Blitz"]
[Site "Chess.com"]
[Date "2021.02.09"]
[Round "3"]
[White "Onischuk_V"]
[Black "Korchmar_Vasiliy"]
[Result "1-0"]
[WhiteElo "2829"]
[BlackElo "2600"]
[TimeControl "180+1"]
[EndTime "10:29:20 PST"]
[Termination "Onischuk_V won on time"]

1. e4 {[%clk 0:02:59.6]} 1... c5 {[%clk 0:03:00]} 2. Ne2 {[%clk 0:02:59.2]} 2...
Nc6 {[%clk 0:02:57.2]} 3. g3 {[%clk 0:02:59.5]} 3... d5 {[%clk 0:02:47.9]} 4.
Bg2 {[%clk 0:03:00]} 4... dxe4 {[%clk 0:02:46]} 5. Nbc3 {[%clk 0:03:00.1]} 5...
Nf6 {[%clk 0:02:42.1]} 6. Nxe4 {[%clk 0:02:58.9]} 6... Nxe4 {[%clk 0:02:42.3]}
7. Bxe4 {[%clk 0:02:58.8]} 7... Bg4 {[%clk 0:02:35.2]} 8. h3 {[%clk 0:02:47.7]}
8... Bh5 {[%clk 0:02:33.1]} 9. d3 {[%clk 0:02:47.1]} 9... Qb6 {[%clk 0:02:21.7]}
10. Be3 {[%clk 0:02:37.5]} 10... e6 {[%clk 0:02:19.8]} 11. Qd2 {[%clk
0:02:32.4]} 11... Qxb2 {[%clk 0:02:10.2]} 12. O-O {[%clk 0:02:31]} 12... Qb6
{[%clk 0:01:58.4]} 13. Nf4 {[%clk 0:02:24.7]} 13... Bg6 {[%clk 0:01:56.9]} 14.
Nxg6 {[%clk 0:02:24.5]} 14... hxg6 {[%clk 0:01:57.6]} 15. Qe2 {[%clk 0:02:15.7]}
15... Bd6 {[%clk 0:01:44.9]} 16. h4 {[%clk 0:02:09]} 16... Qc7 {[%clk
0:01:41.7]} 17. Rab1 {[%clk 0:02:05.7]} 17... Rc8 {[%clk 0:01:39.9]} 18. c3
{[%clk 0:01:55.3]} 18... b6 {[%clk 0:01:32.8]} 19. d4 {[%clk 0:01:53]} 19... O-O
{[%clk 0:01:31.3]} 20. d5 {[%clk 0:01:45.9]} 20... exd5 {[%clk 0:01:28.3]} 21.
Bxd5 {[%clk 0:01:46.1]} 21... Ne7 {[%clk 0:01:26.4]} 22. Bc4 {[%clk 0:01:43.3]}
22... Nf5 {[%clk 0:01:25.1]} 23. Bg5 {[%clk 0:01:41.2]} 23... Rfe8 {[%clk
0:00:44.1]} 24. Qf3 {[%clk 0:01:41]} 24... Be7 {[%clk 0:00:43.5]} 25. Bf4 {[%clk
0:01:36]} 25... Bd6 {[%clk 0:00:43.2]} 26. Bd2 {[%clk 0:01:24.9]} 26... Rcd8
{[%clk 0:00:42.4]} 27. Rbd1 {[%clk 0:01:22.7]} 27... Be5 {[%clk 0:00:33.5]} 28.
h5 {[%clk 0:01:04.7]} 28... Nd6 {[%clk 0:00:33.8]} 29. Bd5 {[%clk 0:01:03.1]}
29... gxh5 {[%clk 0:00:33.9]} 30. Bg5 {[%clk 0:01:02.9]} 30... Rd7 {[%clk
0:00:24.5]} 31. Qxh5 {[%clk 0:01:01.5]} 31... Nf5 {[%clk 0:00:10.7]} 32. Rfe1
{[%clk 0:00:57.5]} 32... Rf8 {[%clk 0:00:03.4]} 33. Qf3 {[%clk 0:00:48.3]} 33...
Ne7 {[%clk 0:00:02.6]} 34. Bc4 {[%clk 0:00:34.4]} 34... Rxd1 {[%clk 0:00:03.5]}
35. Rxd1 {[%clk 0:00:34.2]} 35... Ng6 {[%clk 0:00:03.9]} 36. Qf5 {[%clk
0:00:31.3]} 36... Ne7 {[%clk 0:00:01.7]} 37. Qd7 {[%clk 0:00:17.2]} 37... Qxd7
{[%clk 0:00:01.7]} 38. Rxd7 {[%clk 0:00:16.4]} 38... Nc6 {[%clk 0:00:02]} 39.
Bd5 {[%clk 0:00:16.7]} 39... Na5 {[%clk 0:00:01.8]} 40. Be7 {[%clk 0:00:15]}
40... Re8 {[%clk 0:00:02.2]} 41. Bd6 {[%clk 0:00:14.2]} 41... Bxd6 {[%clk
0:00:01.8]} 42. Bxf7+ {[%clk 0:00:14.4]} 42... Kf8 {[%clk 0:00:02.2]} 43. Bxe8
{[%clk 0:00:14.9]} 43... Bxg3 {[%clk 0:00:01.5]} 44. Bg6 {[%clk 0:00:14.1]} 1-0

[Event "*** Titled Tuesday Blitz"]
[Site "Chess.com"]
[Date "2021.02.09"]
[Round "3"]
[White "Skatchkov_V"]
[Black "alexrustemov"]
[Result "0-1"]
[WhiteElo "2520"]
[BlackElo "2760"]
[TimeControl "180+1"]
[EndTime "10:29:20 PST"]
[Termination "alexrustemov won by resignation"]

1. d4 {[%clk 0:02:59.9]} 1... d5 {[%clk 0:02:59.5]} 2. c4 {[%clk 0:03:00.5]}
2... c6 {[%clk 0:02:59.8]} 3. Nf3 {[%clk 0:03:01]} 3... Nf6 {[%clk 0:03:00]} 4.
Nc3 {[%clk 0:03:00.9]} 4... dxc4 {[%clk 0:03:00.5]} 5. a4 {[%clk 0:03:00.7]}
5... Bf5 {[%clk 0:02:59.9]} 6. Ne5 {[%clk 0:03:00.9]} 6... Nbd7 {[%clk
0:03:00.5]} 7. Nxc4 {[%clk 0:03:01.5]} 7... Nb6 {[%clk 0:03:01.2]} 8. Ne5 {[%clk
0:03:01.6]} 8... a5 {[%clk 0:03:01.7]} 9. h4 {[%clk 0:03:02]} 9... Nfd7 {[%clk
0:02:54.9]} 10. e4 {[%clk 0:02:27.1]} 10... Be6 {[%clk 0:02:47.9]} 11. Nd3
{[%clk 0:02:02.5]} 11... Bc4 {[%clk 0:02:47.6]} 12. Be3 {[%clk 0:01:57]} 12...
e6 {[%clk 0:02:45]} 13. Qg4 {[%clk 0:01:52.5]} 13... Nf6 {[%clk 0:02:35.3]} 14.
Qg3 {[%clk 0:01:51.1]} 14... Bb4 {[%clk 0:02:29]} 15. f3 {[%clk 0:01:42.8]}
15... O-O {[%clk 0:02:22.3]} 16. Rc1 {[%clk 0:01:41]} 16... Nxa4 {[%clk
0:02:20.2]} 17. Nxb4 {[%clk 0:01:25.4]} 17... Bxf1 {[%clk 0:02:18.4]} 18. Nxc6
{[%clk 0:01:23.5]} 18... bxc6 {[%clk 0:02:15.9]} 19. Nxa4 {[%clk 0:01:23.4]}
19... Bb5 {[%clk 0:02:12.2]} 20. Nc5 {[%clk 0:01:23.5]} 20... Kh8 {[%clk
0:01:45.3]} 21. h5 {[%clk 0:01:23.3]} 21... h6 {[%clk 0:01:43.3]} 22. Qf4 {[%clk
0:01:11.2]} 22... a4 {[%clk 0:01:37.3]} 23. g4 {[%clk 0:01:10.8]} 23... Nh7
{[%clk 0:01:30.9]} 24. Qe5 {[%clk 0:01:01.2]} 24... Kg8 {[%clk 0:01:22.4]} 25.
f4 {[%clk 0:00:41.3]} 25... Re8 {[%clk 0:01:17.2]} 26. Nb7 {[%clk 0:00:22.3]}
26... Qb6 {[%clk 0:01:00.8]} 27. Nd6 {[%clk 0:00:19.9]} 27... Red8 {[%clk
0:00:40.5]} 28. g5 {[%clk 0:00:20.2]} 28... hxg5 {[%clk 0:00:27.6]} 29. fxg5
{[%clk 0:00:21.1]} 29... Qc7 {[%clk 0:00:27.6]} 30. Bf4 {[%clk 0:00:20.4]} 30...
Qxd6 {[%clk 0:00:25]} 31. Qxd6 {[%clk 0:00:20.6]} 31... Rxd6 {[%clk 0:00:25.7]}
32. Bxd6 {[%clk 0:00:21.5]} 32... Nxg5 {[%clk 0:00:26.5]} 33. Rh4 {[%clk
0:00:20.4]} 33... Nf3+ {[%clk 0:00:26.1]} 34. Kf2 {[%clk 0:00:20.5]} 34... Nxh4
{[%clk 0:00:26.9]} 35. Kg3 {[%clk 0:00:21.2]} 35... g5 {[%clk 0:00:26.1]} 36.
Be7 {[%clk 0:00:21.5]} 36... a3 {[%clk 0:00:17.3]} 37. Bxg5 {[%clk 0:00:20.3]}
37... axb2 {[%clk 0:00:14.3]} 38. Rb1 {[%clk 0:00:20.6]} 38... Ra2 {[%clk
0:00:12.1]} 39. Kxh4 {[%clk 0:00:07.4]} 39... Bd3 {[%clk 0:00:12.6]} 40. Rg1
{[%clk 0:00:08.3]} 40... b1=Q {[%clk 0:00:11]} 41. Bc1+ {[%clk 0:00:08.5]} 41...
Kh7 {[%clk 0:00:09.6]} 0-1

[Event "*** Titled Tuesday Blitz"]
[Site "Chess.com"]
[Date "2021.02.09"]
[Round "3"]
[White "googlegoom"]
[Black "AlexTriapishko"]
[Result "0-1"]
[WhiteElo "2551"]
[BlackElo "2851"]
[TimeControl "180+1"]
[EndTime "10:29:20 PST"]
[Termination "AlexTriapishko won by resignation"]

1. Nf3 {[%clk 0:03:00.9]} 1... c5 {[%clk 0:02:56.5]} 2. b3 {[%clk 0:03:01]} 2...
Nc6 {[%clk 0:02:56.7]} 3. Bb2 {[%clk 0:03:00.8]} 3... d6 {[%clk 0:02:55.2]} 4.
d4 {[%clk 0:03:00.4]} 4... cxd4 {[%clk 0:02:54.4]} 5. Nxd4 {[%clk 0:02:58.4]}
5... Bd7 {[%clk 0:02:54.5]} 6. e3 {[%clk 0:02:57.6]} 6... Nf6 {[%clk 0:02:51.7]}
7. Be2 {[%clk 0:02:57.9]} 7... g6 {[%clk 0:02:44.9]} 8. O-O {[%clk 0:02:55.1]}
8... Bg7 {[%clk 0:02:44.9]} 9. c4 {[%clk 0:02:55.8]} 9... O-O {[%clk 0:02:44.8]}
10. Nd2 {[%clk 0:02:55.5]} 10... a6 {[%clk 0:02:44.3]} 11. Rc1 {[%clk
0:02:55.3]} 11... b5 {[%clk 0:02:26.5]} 12. Bf3 {[%clk 0:02:40.3]} 12... Rc8
{[%clk 0:02:00.2]} 13. h3 {[%clk 0:02:19.9]} 13... Nb4 {[%clk 0:01:38.7]} 14.
cxb5 {[%clk 0:02:04]} 14... Nd3 {[%clk 0:01:09.7]} 15. Rxc8 {[%clk 0:01:47.7]}
15... Qxc8 {[%clk 0:01:10.6]} 16. Ba1 {[%clk 0:01:03.8]} 16... Bxb5 {[%clk
0:00:45.1]} 17. Nxb5 {[%clk 0:00:58.5]} 17... axb5 {[%clk 0:00:46]} 18. a4
{[%clk 0:00:53.1]} 18... bxa4 {[%clk 0:00:43.7]} 19. bxa4 {[%clk 0:00:54]} 19...
Nc5 {[%clk 0:00:39.1]} 20. Bd4 {[%clk 0:00:22.5]} 20... Qa6 {[%clk 0:00:33.2]}
21. Bxc5 {[%clk 0:00:21.3]} 21... dxc5 {[%clk 0:00:34.1]} 22. Qc2 {[%clk
0:00:17.1]} 22... Nd7 {[%clk 0:00:34.6]} 23. Nc4 {[%clk 0:00:14.3]} 23... Rb8
{[%clk 0:00:31.2]} 24. a5 {[%clk 0:00:13.8]} 24... Rb4 {[%clk 0:00:31]} 25. Rc1
{[%clk 0:00:12.9]} 25... Bf6 {[%clk 0:00:27.6]} 26. Be2 {[%clk 0:00:13]} 26...
Qa7 {[%clk 0:00:23.6]} 27. Rb1 {[%clk 0:00:13]} 27... Qb7 {[%clk 0:00:17.2]} 28.
Rxb4 {[%clk 0:00:12.5]} 28... cxb4 {[%clk 0:00:18.1]} 29. Qb3 {[%clk 0:00:11.9]}
29... Nc5 {[%clk 0:00:18.1]} 30. Qb1 {[%clk 0:00:09.8]} 30... b3 {[%clk
0:00:18.3]} 31. Nb2 {[%clk 0:00:07.3]} 31... Qa7 {[%clk 0:00:05.4]} 32. Nc4
{[%clk 0:00:04.3]} 32... Kg7 {[%clk 0:00:05.9]} 33. Bd1 {[%clk 0:00:01.5]} 33...
Qb7 {[%clk 0:00:06.1]} 34. Nd2 {[%clk 0:00:01.8]} 34... b2 {[%clk 0:00:04.9]}
35. Bc2 {[%clk 0:00:02.1]} 35... Qb4 {[%clk 0:00:04.6]} 36. Ne4 {[%clk
0:00:01.8]} 36... Nxe4 {[%clk 0:00:04.2]} 37. Bxe4 {[%clk 0:00:02.7]} 37... Qxa5
{[%clk 0:00:05.1]} 38. Bc2 {[%clk 0:00:03.2]} 38... h5 {[%clk 0:00:05.5]} 39.
Bd3 {[%clk 0:00:03.8]} 39... h4 {[%clk 0:00:05.9]} 40. Bc2 {[%clk 0:00:03.5]}
40... Qd2 {[%clk 0:00:05.7]} 41. Qd1 {[%clk 0:00:03.9]} 41... Qxd1+ {[%clk
0:00:04.9]} 0-1

[Event "*** Titled Tuesday Blitz"]
[Site "Chess.com"]
[Date "2021.02.09"]
[Round "3"]
[White "ljuks68"]
[Black "dukicz123"]
[Result "0-1"]
[WhiteElo "2381"]
[BlackElo "2562"]
[TimeControl "180+1"]
[EndTime "10:29:20 PST"]
[Termination "dukicz123 won by resignation"]

1. e4 {[%clk 0:03:00.9]} 1... e5 {[%clk 0:03:00.2]} 2. Nf3 {[%clk 0:03:00.6]}
2... Nc6 {[%clk 0:03:00.6]} 3. Bb5 {[%clk 0:03:00.5]} 3... a6 {[%clk 0:03:01.1]}
4. Ba4 {[%clk 0:02:59.7]} 4... Nf6 {[%clk 0:03:01.5]} 5. Qe2 {[%clk 0:02:59]}
5... b5 {[%clk 0:02:59.4]} 6. Bb3 {[%clk 0:02:59.1]} 6... Bc5 {[%clk 0:03:00.3]}
7. c3 {[%clk 0:02:59]} 7... O-O {[%clk 0:02:56.4]} 8. d3 {[%clk 0:02:59]} 8...
d5 {[%clk 0:02:50.9]} 9. Bg5 {[%clk 0:02:57.8]} 9... d4 {[%clk 0:02:47.3]} 10.
Bd5 {[%clk 0:02:43.7]} 10... Bb7 {[%clk 0:02:22.6]} 11. Bxc6 {[%clk 0:02:38.4]}
11... Bxc6 {[%clk 0:02:22.9]} 12. Nxe5 {[%clk 0:02:38.5]} 12... Bb7 {[%clk
0:02:22.6]} 13. Nf3 {[%clk 0:02:32.3]} 13... dxc3 {[%clk 0:02:18.6]} 14. bxc3
{[%clk 0:02:25.9]} 14... h6 {[%clk 0:02:18.9]} 15. Bh4 {[%clk 0:02:23.2]} 15...
Be7 {[%clk 0:02:18.7]} 16. O-O {[%clk 0:02:17.3]} 16... Qd7 {[%clk 0:02:18.9]}
17. Nbd2 {[%clk 0:01:48.1]} 17... Rad8 {[%clk 0:02:18.3]} 18. d4 {[%clk
0:01:46.6]} 18... Rfe8 {[%clk 0:02:14.6]} 19. Ne5 {[%clk 0:01:39.6]} 19... Qc8
{[%clk 0:02:14.1]} 20. f3 {[%clk 0:01:32.4]} 20... c5 {[%clk 0:02:12.3]} 21. Bf2
{[%clk 0:01:23.7]} 21... Bd6 {[%clk 0:02:01.8]} 22. Nd3 {[%clk 0:01:20.9]} 22...
cxd4 {[%clk 0:01:59]} 23. cxd4 {[%clk 0:01:20.4]} 23... Bb8 {[%clk 0:01:59.1]}
24. Rfc1 {[%clk 0:01:09.8]} 24... Qd7 {[%clk 0:01:55.5]} 25. Nc5 {[%clk
0:01:05.9]} 25... Qe7 {[%clk 0:01:54.3]} 26. Nxb7 {[%clk 0:00:54.4]} 26... Qxb7
{[%clk 0:01:54.2]} 27. Nb3 {[%clk 0:00:54.5]} 27... Nd5 {[%clk 0:01:48.3]} 28.
Nc5 {[%clk 0:00:46.4]} 28... Qe7 {[%clk 0:01:48.4]} 29. g3 {[%clk 0:00:28.6]}
29... Qf6 {[%clk 0:01:38.3]} 30. Nxa6 {[%clk 0:00:26.2]} 30... Qxa6 {[%clk
0:01:37.4]} 31. Rc5 {[%clk 0:00:22.4]} 31... Nc7 {[%clk 0:01:28.9]} 32. Rac1
{[%clk 0:00:16.8]} 32... Ne6 {[%clk 0:01:29.2]} 33. Rc6 {[%clk 0:00:15.8]} 33...
Qa3 {[%clk 0:01:24.6]} 34. d5 {[%clk 0:00:15.6]} 34... Ng5 {[%clk 0:01:24.4]}
35. Kg2 {[%clk 0:00:14.9]} 35... Rxd5 {[%clk 0:01:17]} 36. Rc8 {[%clk
0:00:13.5]} 36... Rdd8 {[%clk 0:01:10.3]} 37. Rxd8 {[%clk 0:00:13.1]} 37... Rxd8
{[%clk 0:01:10.7]} 38. Rc2 {[%clk 0:00:13.6]} 38... Kh7 {[%clk 0:00:51.7]} 39.
h4 {[%clk 0:00:10.4]} 39... Ne6 {[%clk 0:00:49.3]} 40. Qxb5 {[%clk 0:00:10.3]}
40... g6 {[%clk 0:00:23.3]} 41. Qb7 {[%clk 0:00:08.2]} 41... Kg7 {[%clk
0:00:14.9]} 42. Rc8 {[%clk 0:00:07.8]} 42... Rxc8 {[%clk 0:00:15]} 43. Qxc8
{[%clk 0:00:07.6]} 43... Be5 {[%clk 0:00:15.2]} 44. Qc4 {[%clk 0:00:06]} 44...
Qb2 {[%clk 0:00:15]} 45. f4 {[%clk 0:00:05.8]} 45... Bd4 {[%clk 0:00:15.4]} 46.
f5 {[%clk 0:00:06]} 46... Qxf2+ {[%clk 0:00:14.8]} 47. Kh3 {[%clk 0:00:06.5]}
47... gxf5 {[%clk 0:00:15]} 48. exf5 {[%clk 0:00:06.1]} 48... Qxf5+ {[%clk
0:00:15.9]} 0-1